{"text_format":"1","workbook":"xlsx","n_sheets":3,"sheets":["Feuil1","Feuil2","Feuil3"],"not_rendered":{"charts":0,"images":0,"macros":1,"external_links":0,"defined_names":0,"comments":0,"pivot_tables":0},"unopened":[],"bounds":{"document_bytes":16777216,"sheet_cells":100000,"rows_first":2000,"rows_last":500,"rows_between":2000,"halvings":0,"cell_chars":16384,"cell_head_chars":4096},"cells_cut":0,"cells_raw":0,"read":"whole","date_system":"1900"}

{"sheet":"Feuil1","index":0,"n_rows":22,"n_cols":12,"rows_kept":22,"cut":false,"hidden":false,"merged":[]}
["Date","Description","Quantité","PrixU","Montant","Frais","Colonne6","Colonne7","Colonne8","Code","Colonne9","Colonne10"]
[null,"SOLDE D'ENCAISSE AU DÉBUT",12,12,{"$f":"RELEVÉ_1[[#This Row],[Quantité]]*RELEVÉ_1[[#This Row],[PrixU]]","v":144},null,null,null,null,206]
[null,"SOLDE D'ENCAISSE À LA FIN",14,10,{"$f":"RELEVÉ_1[[#This Row],[Quantité]]*RELEVÉ_1[[#This Row],[PrixU]]","v":140},null,null,null,null,205]
[null,null,2,8,{"$f":"RELEVÉ_1[[#This Row],[Quantité]]*RELEVÉ_1[[#This Row],[PrixU]]","v":16}]
[null,null,7,7,{"$f":"RELEVÉ_1[[#This Row],[Quantité]]*RELEVÉ_1[[#This Row],[PrixU]]","v":49}]
[null,null,5,6,{"$f":"RELEVÉ_1[[#This Row],[Quantité]]*RELEVÉ_1[[#This Row],[PrixU]]","v":30}]
[null,"SOLDE D'ENCAISSE AU DÉBUT",25,5,{"$f":"RELEVÉ_1[[#This Row],[Quantité]]*RELEVÉ_1[[#This Row],[PrixU]]","v":125},null,null,null,null,206]
[null,"SOLDE D'ENCAISSE À LA FIN",13,20,{"$f":"RELEVÉ_1[[#This Row],[Quantité]]*RELEVÉ_1[[#This Row],[PrixU]]","v":260},null,null,null,null,205]
[null,null,1,70,{"$f":"RELEVÉ_1[[#This Row],[Quantité]]*RELEVÉ_1[[#This Row],[PrixU]]","v":70}]
[null,null,4,100,{"$f":"RELEVÉ_1[[#This Row],[Quantité]]*RELEVÉ_1[[#This Row],[PrixU]]","v":400}]
[null,"SOLDE D'ENCAISSE AU DÉBUT",7,7,{"$f":"RELEVÉ_1[[#This Row],[Quantité]]*RELEVÉ_1[[#This Row],[PrixU]]","v":49}]
[null,"SOLDE D'ENCAISSE À LA FIN",5,6,{"$f":"RELEVÉ_1[[#This Row],[Quantité]]*RELEVÉ_1[[#This Row],[PrixU]]","v":30}]
[null,null,25,5,{"$f":"RELEVÉ_1[[#This Row],[Quantité]]*RELEVÉ_1[[#This Row],[PrixU]]","v":125}]
[null,null,13,20,{"$f":"RELEVÉ_1[[#This Row],[Quantité]]*RELEVÉ_1[[#This Row],[PrixU]]","v":260}]
[null,null,1,70,{"$f":"RELEVÉ_1[[#This Row],[Quantité]]*RELEVÉ_1[[#This Row],[PrixU]]","v":70}]
[null,"SOLDE D'ENCAISSE AU DÉBUT",4,100,{"$f":"RELEVÉ_1[[#This Row],[Quantité]]*RELEVÉ_1[[#This Row],[PrixU]]","v":400},null,null,null,null,206]
[null,"SOLDE D'ENCAISSE À LA FIN",7,7,{"$f":"RELEVÉ_1[[#This Row],[Quantité]]*RELEVÉ_1[[#This Row],[PrixU]]","v":49},null,null,null,null,205]
[null,null,5,6,{"$f":"RELEVÉ_1[[#This Row],[Quantité]]*RELEVÉ_1[[#This Row],[PrixU]]","v":30}]
[null,null,25,5,{"$f":"RELEVÉ_1[[#This Row],[Quantité]]*RELEVÉ_1[[#This Row],[PrixU]]","v":125}]
[null,null,13,20,{"$f":"RELEVÉ_1[[#This Row],[Quantité]]*RELEVÉ_1[[#This Row],[PrixU]]","v":260}]
[null,null,1,70,{"$f":"RELEVÉ_1[[#This Row],[Quantité]]*RELEVÉ_1[[#This Row],[PrixU]]","v":70}]
[null,"EXEMPLE BIDON",4,100,{"$f":"RELEVÉ_1[[#This Row],[Quantité]]*RELEVÉ_1[[#This Row],[PrixU]]","v":400}]

{"sheet":"Feuil2","index":1,"n_rows":0,"n_cols":0,"rows_kept":0,"cut":false,"hidden":true,"merged":[]}

{"sheet":"Feuil3","index":2,"n_rows":0,"n_cols":0,"rows_kept":0,"cut":false,"hidden":false,"merged":[]}